fUSD/lending_fUSD_20260520
["ID","MTS","AMOUNT","RATE_DAILY","PERIOD"]
[422669675,1779228631000,-1521.3,0.00010578,2]
[422669677,1779228631000,-812.36,0.0001075,2]
[422669673,1779228631000,-812.36,0.00010494,2]
[422669674,1779228631000,-500.0,0.00010578,2]
[422669669,1779228631000,-299.99,0.00010402,2]
[422669672,1779228631000,-154.08,0.00010443,2]
[422669670,1779228631000,-150.99,0.00010402,2]
[422669671,1779228631000,-200.0,0.00010413,2]
[422669663,1779228631000,-361.67,0.00010376,2]
[422669682,1779228632000,-166.66,0.00011052,2]
[422669686,1779228632000,-46973.18280907,0.00011192,2]
[422669684,1779228632000,-720.32238943,0.00011182,2]
[422669683,1779228632000,-250.0,0.00011119,2]
[422669687,1779228632000,-379.95756206,0.00011192,2]
[422669688,1779228632000,-54908.45509699,0.00011192,2]
[422669689,1779228632000,-8408.46727034,0.00011192,2]
[422669691,1779228632000,-6127.228,0.00011192,2]
[422669685,1779228632000,-248943.97370163,0.00011192,2]
[422669698,1779228637000,-169.79541069,0.00011191,2]
[422669700,1779228637000,-500.0,0.00011191,2]
[422669701,1779228637000,-500.0,0.00011191,2]
[422669699,1779228637000,-365.21606265,0.00011191,2]
[422669694,1779228637000,-500.0,0.00011191,2]
[422669696,1779228637000,-326.70031168,0.00011191,2]
[422669695,1779228637000,-177.11547958,0.00011191,2]
[422669697,1779228637000,-500.0,0.00011191,2]
[422669702,1779228637000,-500.0,0.00011191,2]
[422669704,1779228637000,-500.0,0.00011191,2]
[422669705,1779228637000,-743.65251989,0.00011191,2]
[422669713,1779228637000,-1430.47301147,0.00011191,2]
[422669712,1779228637000,-1430.47301147,0.00011191,2]
[422669710,1779228637000,-1430.47301147,0.00011191,2]
[422669711,1779228637000,-1430.47301147,0.00011191,2]
[422669703,1779228637000,-500.0,0.00011191,2]
[422669706,1779228637000,-686.82049158,0.00011191,2]
[422669708,1779228637000,-1430.47301147,0.00011191,2]
[422669707,1779228637000,-1430.47301147,0.00011191,2]
[422669709,1779228637000,-1430.47301147,0.00011191,2]
[422669768,1779228638000,-370.59,0.0001144,2]
[422669765,1779228638000,-166.66,0.00011417,2]
[422669760,1779228638000,-11773.80115577,0.00011387,2]
[422669764,1779228638000,-1680.0,0.00011394,2]
[422669767,1779228638000,-2002.89,0.00011425,2]
[422669757,1779228638000,-150.0,0.00011317,2]
[422669766,1779228638000,-2000.0,0.00011422,2]
[422669755,1779228638000,-6289.84970397,0.00011292,2]
[422669762,1779228638000,-9939.24276805,0.00011387,2]
[422669747,1779228638000,-1430.47301147,0.00011191,2]
[422669743,1779228638000,-1430.47301147,0.00011191,2]
[422669759,1779228638000,-1061.3278793,0.00011366,2]
[422669758,1779228638000,-4170.3749,0.00011336,2]
[422669769,1779228638000,-151.0,0.00011463,2]
[422669763,1779228638000,-35788.41024168,0.00011387,2]
[422669770,1779228638000,-151.0,0.00011463,2]
[422669745,1779228638000,-1430.47301147,0.00011191,2]
[422669780,1779228638000,-166.66,0.00011782,2]
[422669777,1779228638000,-11773.80115569,0.0001173,2]
[422669776,1779228638000,-215.15951567,0.00011598,2]
[422669778,1779228638000,-35788.41024164,0.0001173,2]
[422669771,1779228638000,-500.0,0.00011465,2]
[422669779,1779228638000,-500.0,0.00011739,2]
[422669775,1779228638000,-160.0,0.00011598,2]
[422669772,1779228638000,-154.08,0.00011487,2]
[422669773,1779228638000,-33191.258,0.00011566,2]
[422669774,1779228638000,-208.58623393,0.0001159,2]
[422669761,1779228638000,-1117.86629484,0.00011387,2]
[422669742,1779228638000,-1430.47301147,0.00011191,2]
[422669752,1779228638000,-1430.47301147,0.00011191,2]
[422669741,1779228638000,-1430.47301147,0.00011191,2]
[422669782,1779228638000,-387.33,0.00011907,2]
[422669717,1779228638000,-1430.47301147,0.00011191,2]
[422669718,1779228638000,-1430.47301147,0.00011191,2]
[422669714,1779228638000,-1430.47301147,0.00011191,2]
[422669719,1779228638000,-1430.47301147,0.00011191,2]
[422669720,1779228638000,-1430.47301147,0.00011191,2]
[422669716,1779228638000,-1430.47301147,0.00011191,2]
[422669715,1779228638000,-1430.47301147,0.00011191,2]
[422669722,1779228638000,-1430.47301147,0.00011191,2]
[422669733,1779228638000,-1430.47301147,0.00011191,2]
[422669721,1779228638000,-1430.47301147,0.00011191,2]
[422669723,1779228638000,-1430.47301147,0.00011191,2]
[422669724,1779228638000,-1430.47301147,0.00011191,2]
[422669729,1779228638000,-1430.47301147,0.00011191,2]
[422669725,1779228638000,-1430.47301147,0.00011191,2]
[422669727,1779228638000,-1430.47301147,0.00011191,2]
[422669731,1779228638000,-1430.47301147,0.00011191,2]
[422669739,1779228638000,-1430.47301147,0.00011191,2]
[422669736,1779228638000,-1430.47301147,0.00011191,2]
[422669735,1779228638000,-1430.47301147,0.00011191,2]
[422669737,1779228638000,-1430.47301147,0.00011191,2]
[422669740,1779228638000,-1430.47301147,0.00011191,2]
[422669749,1779228638000,-1430.47301147,0.00011191,2]
[422669753,1779228638000,-2134258.73555991,0.00011192,2]
[422669754,1779228638000,-812.36,0.00011262,2]
[422669751,1779228638000,-1430.47301147,0.00011191,2]
[422669750,1779228638000,-1430.47301147,0.00011191,2]
[422669744,1779228638000,-1430.47301147,0.00011191,2]
[422669789,1779228638000,-180.71,0.00012329,2]
[422669788,1779228638000,-500.0,0.00012287,2]
[422669784,1779228638000,-500.0,0.00012013,2]
[422669812,1779228638000,-19922.04075653,0.00013,5]
[422669819,1779228638000,-1061.32787927,0.00013133,2]
[422669829,1779228638000,-191.21706452,0.00013388,2]
[422669820,1779228638000,-2338.179667,0.00013177,2]
[422669818,1779228638000,-500.0,0.00013108,2]
[422669821,1779228638000,-1813.860591,0.00013177,2]
[422669823,1779228638000,-2949.739864,0.00013177,2]
[422669826,1779228638000,-234.0,0.00013316,2]
[422669822,1779228638000,-2522.138871,0.00013177,2]
[422669824,1779228638000,-648.016316,0.00013177,2]
[422669828,1779228638000,-500.0,0.00013382,2]
[422669827,1779228638000,-500.0,0.0001337,2]
[422669831,1779228638000,-9939.24276803,0.00013394,2]
[422669816,1779228638000,-11773.80115569,0.00013103,2]
[422669832,1779228638000,-387.33,0.00013395,2]
[422669833,1779228638000,-11773.80115569,0.00013446,2]
[422669834,1779228638000,-35788.41024164,0.00013446,2]
[422669835,1779228638000,-150.0,0.00013488,2]
[422669838,1779228638000,-150.0,0.00013488,2]
[422669840,1779228638000,-150.0,0.00013488,2]
[422669837,1779228638000,-151.44167909,0.00013488,2]
[422669836,1779228638000,-150.0,0.00013488,2]
[422669839,1779228638000,-150.0,0.00013488,2]
[422669842,1779228638000,-150.0,0.00013488,2]
[422669841,1779228638000,-150.0,0.00013488,2]
[422669844,1779228638000,-150.0,0.00013488,2]
[422669790,1779228638000,-255.0,0.00012369,2]
[422669843,1779228638000,-150.0,0.00013488,2]
[422669830,1779228638000,-7568.64935995,0.00013388,2]
[422669817,1779228638000,-35788.41024164,0.00013103,2]
[422669825,1779228638000,-2553.872618,0.00013177,2]
[422669810,1779228638000,-9939.24276803,0.00012893,2]
[422669783,1779228638000,-1061.32787927,0.00011955,2]
[422669814,1779228638000,-1117.86629484,0.00013044,2]
[422669785,1779228638000,-11773.80115569,0.00012073,2]
[422669791,1779228638000,-9939.24276803,0.00012391,2]
[422669792,1779228638000,-11773.80115569,0.00012417,2]
[422669786,1779228638000,-35788.41024164,0.00012073,2]
[422669787,1779228638000,-166.66,0.00012146,2]
[422669794,1779228638000,-500.0,0.00012494,2]
[422669803,1779228638000,-11773.80115569,0.0001276,2]
[422669804,1779228638000,-35788.41024164,0.0001276,2]
[422669793,1779228638000,-35788.41024164,0.00012417,2]
[422669795,1779228638000,-3060.0,0.00012505,5]
[422669798,1779228638000,-2351.0,0.00012533,2]
[422669797,1779228638000,-154.08,0.00012532,2]
[422669781,1779228638000,-9939.24276803,0.00011889,2]
[422669799,1779228638000,-1061.32787927,0.00012544,2]
[422669796,1779228638000,-166.66,0.00012511,2]
[422669813,1779228638000,-266.0,0.00013042,2]
[422669811,1779228638000,-2055.7152744,0.00013,2]
[422669809,1779228638000,-166.66,0.00012876,2]
[422669806,1779228638000,-441.0,0.00012822,2]
[422669808,1779228638000,-477.78,0.00012852,2]
[422669815,1779228638000,-5412.79929364,0.0001305,2]
[422669807,1779228638000,-500.0,0.00012835,2]
[422669805,1779228638000,-500.0,0.00012768,2]
[422669800,1779228638000,-500.0,0.00012561,2]
[422669802,1779228638000,-370.59,0.00012711,2]
[422669801,1779228638000,-2000.0,0.00012691,2]
[422669887,1779228639000,-500.0,0.00013698,2]
[422669885,1779228639000,-500.0,0.00013698,2]
[422669882,1779228639000,-500.0,0.00013698,2]
[422669883,1779228639000,-500.0,0.00013698,2]
[422669886,1779228639000,-500.0,0.00013698,2]
[422669879,1779228639000,-500.0,0.00013698,2]
[422669881,1779228639000,-500.0,0.00013698,2]
[422669884,1779228639000,-430.77473575,0.00013698,2]
[422669878,1779228639000,-500.0,0.00013698,2]
[422669877,1779228639000,-500.0,0.00013698,2]
[422669888,1779228639000,-500.0,0.00013698,2]
[422669880,1779228639000,-500.0,0.00013698,2]
[422669901,1779228639000,-500.0,0.00013698,2]
[422669902,1779228639000,-442.23348192,0.00013698,2]
[422669900,1779228639000,-500.0,0.00013698,2]
[422669905,1779228639000,-500.0,0.00013698,2]
[422669892,1779228639000,-500.0,0.00013698,2]
[422669903,1779228639000,-5192.73,0.00013698,2]
[422669889,1779228639000,-500.0,0.00013698,2]
[422669873,1779228639000,-500.0,0.00013698,2]
[422669891,1779228639000,-500.0,0.00013698,2]
[422669894,1779228639000,-500.0,0.00013698,2]
[422669893,1779228639000,-500.0,0.00013698,2]
[422669895,1779228639000,-500.0,0.00013698,2]
[422669896,1779228639000,-500.0,0.00013698,2]
[422669897,1779228639000,-502.56,0.00013698,2]
[422669899,1779228639000,-502.56,0.00013698,2]
[422669890,1779228639000,-500.0,0.00013698,2]
[422669872,1779228639000,-500.0,0.00013698,2]
[422669852,1779228639000,-150.0,0.00013569,2]
[422669875,1779228639000,-500.0,0.00013698,2]
[422669904,1779228639000,-5192.73,0.00013698,2]
[422669853,1779228639000,-154.08,0.00013576,2]
[422669851,1779228639000,-150.0,0.00013567,2]
[422669846,1779228639000,-150.0,0.00013508,2]
[422669850,1779228639000,-150.0,0.00013548,2]
[422669845,1779228639000,-150.0,0.00013488,2]
[422669848,1779228639000,-150.0,0.00013528,2]
[422669849,1779228639000,-150.0,0.00013538,2]
[422669854,1779228639000,-150.0,0.00013588,2]
[422669856,1779228639000,-150.0,0.00013603,2]
[422669863,1779228639000,-150.0,0.00013638,2]
[422669858,1779228639000,-150.0,0.00013629,2]
[422669864,1779228639000,-150.0,0.00013638,2]
[422669859,1779228639000,-500.0,0.0001363,2]
[422669865,1779228639000,-150.0,0.00013638,2]
[422669860,1779228639000,-500.0,0.0001363,2]
[422669861,1779228639000,-500.0,0.0001363,2]
[422669855,1779228639000,-150.0,0.00013589,2]
[422669857,1779228639000,-150.0,0.00013609,2]
[422669862,1779228639000,-500.0,0.0001363,2]
[422669867,1779228639000,-150.0,0.0001365,2]
[422669866,1779228639000,-150.0,0.00013645,2]
[422669869,1779228639000,-150.0,0.0001367,2]
[422669870,1779228639000,-150.0,0.00013687,2]
[422669868,1779228639000,-500.0,0.00013656,2]
[422669876,1779228639000,-500.0,0.00013698,2]
[422669874,1779228639000,-525.7,0.00013698,2]
[422669871,1779228639000,-150.0,0.0001369,2]
[422669906,1779228639000,-500.0,0.00013698,2]
[422669847,1779228639000,-433.0,0.00013524,2]
[422669910,1779228639000,-500.0,0.00013698,2]
[422669942,1779228639000,-500.0,0.00013698,2]
[422669943,1779228639000,-500.0,0.00013698,2]
[422669947,1779228639000,-500.0,0.00013698,2]
[422669945,1779228639000,-500.0,0.00013698,2]
[422669951,1779228639000,-500.0,0.00013698,2]
[422669950,1779228639000,-500.0,0.00013698,2]
[422669944,1779228639000,-500.0,0.00013698,2]
[422669955,1779228639000,-500.0,0.00013698,2]
[422669949,1779228639000,-500.0,0.00013698,2]
[422669954,1779228639000,-500.0,0.00013698,2]
[422669953,1779228639000,-500.0,0.00013698,2]
[422669956,1779228639000,-500.0,0.00013698,2]
[422669968,1779228639000,-500.0,0.00013698,2]
[422669941,1779228639000,-500.0,0.00013698,2]
[422669959,1779228639000,-500.0,0.00013698,2]
[422669970,1779228639000,-500.0,0.00013698,2]
[422669958,1779228639000,-500.0,0.00013698,2]
[422669964,1779228639000,-209.51466794,0.00013698,2]
[422669969,1779228639000,-500.0,0.00013698,2]
[422669961,1779228639000,-500.0,0.00013698,2]
[422669966,1779228639000,-500.0,0.00013698,2]
[422669960,1779228639000,-500.0,0.00013698,2]
[422669965,1779228639000,-349.78123329,0.00013698,2]
[422669962,1779228639000,-500.0,0.00013698,2]
[422669967,1779228639000,-500.0,0.00013698,2]
[422669971,1779228639000,-500.0,0.00013698,2]
[422669972,1779228639000,-500.0,0.00013698,2]
[422669907,1779228639000,-500.0,0.00013698,2]
[422669963,1779228639000,-500.0,0.00013698,2]
[422669940,1779228639000,-500.0,0.00013698,2]
[422669957,1779228639000,-500.0,0.00013698,2]
[422669938,1779228639000,-500.0,0.00013698,2]
[422669912,1779228639000,-500.0,0.00013698,2]
[422669939,1779228639000,-500.0,0.00013698,2]
[422669914,1779228639000,-500.0,0.00013698,2]
[422669917,1779228639000,-500.0,0.00013698,2]
[422669909,1779228639000,-500.0,0.00013698,2]
[422669908,1779228639000,-500.0,0.00013698,2]
[422669915,1779228639000,-500.0,0.00013698,2]
[422669916,1779228639000,-508.68888162,0.00013698,2]
[422669911,1779228639000,-500.0,0.00013698,2]
[422669918,1779228639000,-500.0,0.00013698,2]
[422669920,1779228639000,-500.0,0.00013698,2]
[422669921,1779228639000,-500.0,0.00013698,2]
[422669922,1779228639000,-500.0,0.00013698,2]
[422669925,1779228639000,-500.0,0.00013698,2]
[422669919,1779228639000,-500.0,0.00013698,2]
[422669927,1779228639000,-500.0,0.00013698,2]
[422669933,1779228639000,-500.0,0.00013698,2]
[422669923,1779228639000,-500.0,0.00013698,2]
[422669935,1779228639000,-500.0,0.00013698,2]
[422669936,1779228639000,-500.0,0.00013698,2]
[422669937,1779228639000,-500.0,0.00013698,2]
[422669931,1779228639000,-500.0,0.00013698,2]
[422669932,1779228639000,-375.48613759,0.00013698,2]
[422669934,1779228639000,-500.0,0.00013698,2]
[422669929,1779228639000,-500.0,0.00013698,2]
[422669928,1779228639000,-500.0,0.00013698,2]
[422669926,1779228639000,-500.0,0.00013698,2]
[422669924,1779228639000,-500.0,0.00013698,2]
[422669930,1779228639000,-490.0,0.00013698,2]
[422670019,1779228640000,-150.0,0.00013887,2]
[422670017,1779228640000,-150.0,0.00013872,2]
[422670015,1779228640000,-150.0,0.00013837,2]
[422670014,1779228640000,-166.66,0.00013836,2]
[422669999,1779228640000,-150.0,0.00013771,2]
[422670013,1779228640000,-150.0,0.00013834,2]
[422670022,1779228640000,-501.52136139,0.00013889,2]
[422670012,1779228640000,-150.0,0.00013832,2]
[422670006,1779228640000,-11773.80115569,0.0001379,2]
[422670005,1779228640000,-717.40203894,0.00013789,2]
[422670001,1779228640000,-150.0,0.00013787,2]
[422670016,1779228640000,-150.0,0.00013852,2]
[422670011,1779228640000,-150.0,0.00013812,2]
[422670021,1779228640000,-500.0,0.00013889,2]
[422670023,1779228640000,-500.0,0.00013889,2]
[422670020,1779228640000,-500.0,0.00013888,2]
[422670028,1779228640000,-500.0,0.00013889,2]
[422670029,1779228640000,-500.0,0.00013889,2]
[422670030,1779228640000,-500.0,0.00013889,2]
[422670031,1779228640000,-500.0,0.00013889,2]
[422670027,1779228640000,-516.09371618,0.00013889,2]
[422670032,1779228640000,-500.0,0.00013889,2]
[422670034,1779228640000,-478.0,0.00013889,2]
[422670035,1779228640000,-500.0,0.00013889,2]
[422670025,1779228640000,-500.0,0.00013889,2]
[422670033,1779228640000,-500.0,0.00013889,2]
[422670026,1779228640000,-500.0,0.00013889,2]
[422670007,1779228640000,-35788.41024164,0.0001379,2]
[422670018,1779228640000,-150.0,0.00013882,2]
[422670002,1779228640000,-150.0,0.00013787,2]
[422669975,1779228640000,-500.0,0.00013698,2]
[422670004,1779228640000,-150.0,0.00013787,2]
[422669973,1779228640000,-500.0,0.00013698,2]
[422670024,1779228640000,-500.0,0.00013889,2]
[422669976,1779228640000,-502.26457944,0.00013698,2]
[422669982,1779228640000,-500.0,0.00013698,2]
[422669977,1779228640000,-500.0,0.00013698,2]
[422669974,1779228640000,-500.0,0.00013698,2]
[422669983,1779228640000,-504.85547194,0.00013698,2]
[422669978,1779228640000,-500.0,0.00013698,2]
[422669980,1779228640000,-500.0,0.00013698,2]
[422669981,1779228640000,-500.0,0.00013698,2]
[422669985,1779228640000,-500.0,0.00013698,2]
[422669984,1779228640000,-170.0,0.00013698,2]
[422669987,1779228640000,-719.98,0.00013699,2]
[422669994,1779228640000,-150.0,0.00013724,2]
[422669991,1779228640000,-150.0,0.0001371,2]
[422669992,1779228640000,-150.0,0.00013718,2]
[422669996,1779228640000,-150.0,0.00013737,2]
[422669988,1779228640000,-200.0,0.00013699,2]
[422669993,1779228640000,-1061.32787927,0.00013722,2]
[422669986,1779228640000,-500.0,0.00013698,2]
[422669995,1779228640000,-150.0,0.00013731,2]
[422669989,1779228640000,-166.66,0.00013699,2]
[422669990,1779228640000,-2500.0,0.00013699,2]
[422669998,1779228640000,-150.0,0.00013751,2]
[422670009,1779228640000,-1786.35,0.000138,2]
[422670008,1779228640000,-150.0,0.00013791,2]
[422670010,1779228640000,-150.0,0.00013803,2]
[422670003,1779228640000,-150.0,0.00013787,2]
[422670000,1779228640000,-3292.0,0.00013787,2]
[422669997,1779228640000,-150.0,0.00013737,2]
[422670036,1779228640000,-500.0,0.00013889,2]
[422669979,1779228640000,-500.0,0.00013698,2]
[422670038,1779228640000,-500.0,0.00013889,2]
[422670075,1779228640000,-508.45785621,0.00013889,2]
[422670074,1779228640000,-500.0,0.00013889,2]
[422670077,1779228640000,-5192.73,0.00013889,2]
[422670073,1779228640000,-500.0,0.00013889,2]
[422670083,1779228640000,-5192.73,0.00013889,2]
[422670092,1779228640000,-500.0,0.00013889,2]
[422670081,1779228640000,-5192.73,0.00013889,2]
[422670082,1779228640000,-5192.73,0.00013889,2]
[422670086,1779228640000,-5192.73,0.00013889,2]
[422670088,1779228640000,-500.0,0.00013889,2]
[422670087,1779228640000,-500.0,0.00013889,2]
[422670085,1779228640000,-5192.73,0.00013889,2]
[422670084,1779228640000,-5192.73,0.00013889,2]
[422670089,1779228640000,-500.0,0.00013889,2]
[422670091,1779228640000,-500.0,0.00013889,2]
[422670090,1779228640000,-500.0,0.00013889,2]
[422670093,1779228640000,-500.0,0.00013889,2]
[422670096,1779228640000,-500.0,0.00013889,2]
[422670095,1779228640000,-500.0,0.00013889,2]
[422670097,1779228640000,-500.0,0.00013889,2]
[422670101,1779228640000,-500.0,0.00013889,2]
[422670103,1779228640000,-500.0,0.00013889,2]
[422670102,1779228640000,-500.0,0.00013889,2]
[422670094,1779228640000,-500.0,0.00013889,2]
[422670100,1779228640000,-500.0,0.00013889,2]
[422670099,1779228640000,-500.0,0.00013889,2]
[422670104,1779228640000,-500.0,0.00013889,2]
[422670105,1779228640000,-500.0,0.00013889,2]
[422670037,1779228640000,-500.0,0.00013889,2]
[422670076,1779228640000,-5192.73,0.00013889,2]
[422670078,1779228640000,-5192.73,0.00013889,2]
[422670098,1779228640000,-500.0,0.00013889,2]
[422670071,1779228640000,-502.56,0.00013889,2]
[422670072,1779228640000,-500.0,0.00013889,2]
[422670046,1779228640000,-500.0,0.00013889,2]
[422670041,1779228640000,-372.71342826,0.00013889,2]
[422670040,1779228640000,-500.0,0.00013889,2]
[422670053,1779228640000,-525.7,0.00013889,2]
[422670048,1779228640000,-309.02129379,0.00013889,2]
[422670051,1779228640000,-525.7,0.00013889,2]
[422670045,1779228640000,-500.0,0.00013889,2]
[422670052,1779228640000,-525.7,0.00013889,2]
[422670047,1779228640000,-500.0,0.00013889,2]
[422670049,1779228640000,-525.7,0.00013889,2]
[422670054,1779228640000,-525.7,0.00013889,2]
[422670065,1779228640000,-502.56,0.00013889,2]
[422670055,1779228640000,-525.7,0.00013889,2]
[422670066,1779228640000,-502.56,0.00013889,2]
[422670043,1779228640000,-500.0,0.00013889,2]
[422670064,1779228640000,-502.56,0.00013889,2]
[422670058,1779228640000,-525.7,0.00013889,2]
[422670069,1779228640000,-502.56,0.00013889,2]
[422670068,1779228640000,-502.56,0.00013889,2]
[422670070,1779228640000,-502.56,0.00013889,2]
[422670067,1779228640000,-502.56,0.00013889,2]
[422670063,1779228640000,-502.56,0.00013889,2]
[422670079,1779228640000,-5192.73,0.00013889,2]
[422670060,1779228640000,-525.7,0.00013889,2]
[422670059,1779228640000,-525.7,0.00013889,2]
[422670057,1779228640000,-525.7,0.00013889,2]
[422670061,1779228640000,-502.56,0.00013889,2]
[422670080,1779228640000,-5192.73,0.00013889,2]
[422670062,1779228640000,-502.56,0.00013889,2]
[422670056,1779228640000,-525.7,0.00013889,2]
[422670150,1779228641000,-150.0,0.00014087,2]
[422670135,1779228641000,-525.7,0.00014019,2]
[422670140,1779228641000,-500.0,0.00014019,2]
[422670138,1779228641000,-5192.73,0.00014019,2]
[422670139,1779228641000,-5192.73,0.00014019,2]
[422670141,1779228641000,-500.0,0.00014019,2]
[422670143,1779228641000,-500.0,0.00014019,2]
[422670147,1779228641000,-150.0,0.00014055,2]
[422670148,1779228641000,-150.0,0.00014064,2]
[422670146,1779228641000,-150.0,0.0001404,2]
[422670137,1779228641000,-502.56,0.00014019,2]
[422670136,1779228641000,-502.56,0.00014019,2]
[422670151,1779228641000,-150.0,0.00014087,2]
[422670145,1779228641000,-150.0,0.00014037,2]
[422670152,1779228641000,-150.0,0.00014087,2]
[422670144,1779228641000,-150.0,0.00014034,2]
[422670154,1779228641000,-150.0,0.00014095,2]
[422670153,1779228641000,-150.0,0.00014087,2]
[422670167,1779228641000,-203.9,0.00014165,2]
[422670156,1779228641000,-150.0,0.00014115,2]
[422670155,1779228641000,-166.66,0.0001411,2]
[422670160,1779228641000,-150.0,0.00014136,2]
[422670157,1779228641000,-150.0,0.00014119,2]
[422670134,1779228641000,-525.7,0.00014019,2]
[422670149,1779228641000,-150.0,0.00014075,2]
[422670133,1779228641000,-150.0,0.00014014,2]
[422670112,1779228641000,-150.0,0.00013893,2]
[422670132,1779228641000,-530.30207749,0.00014,2]
[422670159,1779228641000,-35788.41024164,0.00014133,2]
[422670116,1779228641000,-150.0,0.00013933,2]
[422670106,1779228641000,-500.0,0.00013889,2]
[422670108,1779228641000,-500.0,0.00013889,2]
[422670115,1779228641000,-500.0,0.0001393,2]
[422670118,1779228641000,-150.0,0.00013937,2]
[422670109,1779228641000,-500.0,0.00013889,2]
[422670117,1779228641000,-150.0,0.00013937,2]
[422670107,1779228641000,-500.0,0.00013889,2]
[422670110,1779228641000,-500.0,0.00013889,2]
[422670114,1779228641000,-150.0,0.00013913,2]
[422670113,1779228641000,-9939.24276803,0.00013896,2]
[422670131,1779228641000,-250.0,0.00014,2]
[422670111,1779228641000,-507.15627863,0.00013889,2]
[422670128,1779228641000,-150.0,0.00013987,2]
[422670129,1779228641000,-37093.93474373,0.0001399,2]
[422670130,1779228641000,-150.0,0.00013994,2]
[422670122,1779228641000,-2000.0,0.0001396,2]
[422670121,1779228641000,-150.0,0.00013953,2]
[422670120,1779228641000,-150.0,0.00013949,2]
[422670126,1779228641000,-370.59,0.00013982,2]
[422670123,1779228641000,-150.0,0.00013961,2]
[422670124,1779228641000,-166.66,0.00013973,2]
[422670125,1779228641000,-150.0,0.00013974,2]
[422670127,1779228641000,-150.0,0.00013987,2]
[422670142,1779228641000,-500.0,0.00014019,2]
[422670119,1779228641000,-150.0,0.00013937,2]
[422670166,1779228641000,-203.9,0.00014165,2]
[422670165,1779228641000,-203.9,0.00014165,2]
[422670161,1779228641000,-150.0,0.00014137,2]
[422670198,1779228641000,-150.0,0.00014338,2]
[422670195,1779228641000,-1061.32787927,0.00014311,2]
[422670196,1779228641000,-150.0,0.00014318,2]
[422670199,1779228641000,-219.19886839,0.00014343,2]
[422670197,1779228641000,-150.0,0.00014337,2]
[422670201,1779228641000,-717.40203893,0.00014345,2]
[422670202,1779228641000,-150.0,0.00014355,2]
[422670200,1779228641000,-500.0,0.00014343,2]
[422670208,1779228641000,-150.0,0.00014387,2]
[422670207,1779228641000,-150.0,0.00014387,2]
[422670203,1779228641000,-350.0,0.00014356,2]
[422670206,1779228641000,-166.66,0.00014384,2]
[422670205,1779228641000,-150.0,0.00014379,2]
[422670210,1779228641000,-150.0,0.00014387,2]
[422670211,1779228641000,-9939.24276803,0.00014398,2]
[422670209,1779228641000,-150.0,0.00014387,2]
[422670218,1779228641000,-150.0,0.0001444,2]
[422670212,1779228641000,-150.0,0.00014399,2]
[422670213,1779228641000,-2700.0,0.000144,5]
[422670216,1779228641000,-150.0,0.00014434,2]
[422670217,1779228641000,-150.0,0.00014437,2]
[422670214,1779228641000,-150.0,0.0001441,2]
[422670219,1779228641000,-150.0,0.0001446,2]
[422670215,1779228641000,-150.0,0.00014419,2]
[422670158,1779228641000,-11773.80115569,0.00014133,2]
[422670194,1779228641000,-150.0,0.00014298,2]
[422670188,1779228641000,-150.0,0.00014257,2]
[422670204,1779228641000,-150.0,0.00014358,2]
[422670189,1779228641000,-700.0,0.0001426,2]
[422670164,1779228641000,-150.0,0.00014156,2]